{"text_format":"1","workbook":"xlsx","n_sheets":1,"sheets":["Лист1"],"not_rendered":{"charts":0,"images":0,"macros":1,"external_links":0,"defined_names":0,"comments":0,"pivot_tables":0},"unopened":[],"bounds":{"document_bytes":16777216,"sheet_cells":100000,"rows_first":2000,"rows_last":500,"rows_between":2000,"halvings":0,"cell_chars":16384,"cell_head_chars":4096},"cells_cut":0,"cells_raw":0,"read":"whole","date_system":"1900"}

{"sheet":"Лист1","index":0,"n_rows":16,"n_cols":4,"rows_kept":16,"cut":false,"hidden":false,"merged":[]}
["Питчеры » Snell B. [TAM] (В, 6-7), Gausman K. [BAL] (П, 11-12)"]
[]
[null,"Фамилия Первого",null,"Фамилия Второго"]
["Выбрать","Snell B.",null,"Gausman K."]
[]
["Питчеры » Bundy D. [BAL] (П, 0-1), Happ J. [TOR] (В, 2-1)",{"$f":"chelovekov($A6,1)","v":"Bundy D."},null,{"$f":"chelovekov($A6,2)","v":"Happ J."}]
["Питчеры » Scherzer M. [WAS] (В, 2-1), Teheran J. [ATL] (П, 0-1)","Scherzer M.",null,"Teheran J."]
["Питчеры » Holland G. [STL] (П, 0-1), Albers M. [MIL] (В, 2-0)","Holland G.",null,"Albers M."]
["Питчеры » Garcia L. [PHI] (В, 1-1), Quackenbush K. [CIN] (П, 0-1)","Garcia L.",null,"Quackenbush K."]
["Питчеры » Urena J. [MIA] (П, 0-2), Syndergaard N. [NYM] (В, 2-0)","Urena J.",null,"Syndergaard N."]
["Питчеры » Fister D. [TEX] (П, 1-2), Alvarez J. [LAA] (В, 1-0)","Fister D.",null,"Alvarez J."]
["Питчеры » Rogers T. [MIN] (П, 1-1), Verlander J. [HOU] (В, 2-0)","Rogers T.",null,"Verlander J."]
["Питчеры » Junis J. [KAN] (В, 2-0), Gonzales M. [SEA] (П, 1-1)","Junis J.",null,"Gonzales M."]
["Питчеры » Gray J. [COL] (П, 1-2), Richard C. [SAN] (В, 1-1)","Gray J.",null,"Richard C."]
["Bettis C. [COL] (В, 2-4), Ryu Hyun-Jin [LAD] (П, 5-9)","Bettis C.",null,{"$f":"chelovekov($A15,2)","v":"Ryu Hyun-Jin"}]
["Питчеры » Перес М. [TEX] (В, 13-12), Алькантара Р. [OAK] (П, 1-2)",{"$f":"chelovekov($A16,1)","v":"Перес М."},null,{"$f":"chelovekov($A16,2)","v":"Алькантара Р."}]